Workbook

Sheet Cover
A1: Genesys Web Services and Applications Node Sizing Tool 8.5.2
A3: Note: This sizing calculator provides an estimate of the required number of Web Services nodes (VMs) and peak number of CPU utilization. These numbers are calculated based on input parameters that specify projected load and maximum time for recovery if one API node goes down. The number of VMs and CPU utilization can be used to estimate required number of ESX hosts for a given deployment.
A4: The information contained herein is proprietary and confidential and cannot be disclosed or duplicated without the prior written consent of Genesys Telecommunications Laboratories, Inc. Copyright © 2016-2017 Genesys Telecommunications Laboratories, Inc. All rights reserved.
A5: About Genesys: Genesys solutions feature leading software that manages customer interactions over phone, Web, and mobile devices. The Genesys software suite handles customer conversations across multiple channels and resources—self-service, assisted-service, and proactive outreach—fulfilling customer requests and optimizing customer care goals while efficiently using resources. Genesys software directs more than 100 million customer interactions every day for 4000 companies and government agencies in 80 countries. These companies and agencies leverage their entire organization, from the contact center to the back office, while dynamically engaging their customers. Go to www.genesys.com for more information.Each product has its own documentation for online viewing at the Genesys Customer Care website or on the Documentation Library DVD, which is available from Genesys upon request. For more information, contact your sales representative.
A6: Notice: Although reasonable effort is made to ensure that the information in this document is complete and accurate at the time of release, Genesys Telecommunications Laboratories, Inc., cannot assume responsibility for any existing errors. Changes and/or corrections to the information contained in this document may be incorporated in future versions.
A7: Trademarks: Genesys, the Genesys logo, and T-Server are registered trademarks of Genesys Telecommunications Laboratories, Inc. All other trademarks and trade names referred to in this document are the property of other companies. The Crystal monospace font is used by permission of Software Renovation Corporation, www.SoftwareRenovation.com.
A8: Technical Support from VARs: If you have purchased support from a value-added reseller (VAR), please contact the VAR for technical support.
A9: Customer Care from Genesys: If you have purchased support directly from Genesys, please contact Genesys Customer Care at the regional numbers provided on the Genesys Customer Care website.
A10: Ordering and Licensing Information: Complete information on ordering and licensing Genesys products can be found in the Genesys Licensing Guide. Released by Genesys Telecommunications Laboratories, Inc. www.genesys.com.
A12: Document Version: 8.5.201.04

Sheet Sizing Procedure
B6: Sizing Procedure
B7: 1. Enter Sizing Input Parameters, which reflect expected peak traffic
B8: 2. Enter SPECint2006 Rate CPU score, based on https://www.spec.org/cgi-bin/osgresults?conf=rint2006 For example, SPECint2006 Rate for Intel Xeon E5-2697 = 1180/28 = 42.14
B9: 3. Sizing Output Results for the number of API, Elastic Search, Stat and Cassandra nodes are shown immediately, with estimated peak CPU utilization
B10: 4. Based on the node and CPU outputs, manually determine the required number of VMWare ESX hosts using these rules: - Minimum of 3 ESX hosts, to accommodate HA requirements (each ESX will host one Cassandra and ES node) - Total CPU Utilization on a host (sum of CPU utilization for all VMs) must not exceed 75% of total host capacity

Sheet Sizing Tool
B2: Sizing Input
B3: Input Parameter | C3: Value | D3: Comments
B4: Max # Logged in Agents | C4: 1500 | D4: Max # of agents logged in simultaneously
B5: Peak Call Rate (calls/sec) | C5: 2.0 | D5: Peak total rate of all new calls handled by agents (Inbound & Outbound)
B6: Average Call Duration (sec) | C6: 600
B7: Peak Chat Rate (chat/sec) | C7: 0.0
B8: Chat Session duration (sec) | C8: 0
B9: # Messages per Session | C9: 0 | D9: Number of messages going in both directions during one session
B10: Peak Inbound Email Rate | C10: 0.0 | D10: Average rate of inbound emails
B11: Peak Outbound Email Rate | C11: 0.0 | D11: Summary of average rate of replies and rate of outbound emails
B12: Rate of Email Through Workbin | C12: 0.0 | D12: Average rate of emails that go through workbin
B13: Attachment Size (MByte) | C13: 0 | D13: Average attachment size in MByte
B14: Max re-Login Time (sec) | C14: 10 | D14: Max acceptable time for agent re-login to surviving node after failure
B15: # Cores per VM | C15: 4
B16: CPU Score (SPECint2006) | C16: 42 | D16: https://www.spec.org/cgi-bin/osgresults?conf=rint2006
B18: Sizing Output
B19: Output Parameter | C19: Value | D19: Comments
B20: API Nodes - # Required | C20: =INDEX('Calculations-Hidden'!$A$47:$A$62,MATCH(1,('Calculations-Hidden'!$C$47:$C$62<=$C$14)*('Calculations-Hidden'!$E$47:$E$62<'Calculations-Hidden'!$B$37)*('Calculations-Hidden'!$M$47:$M$62<'Calculations-Hidden'!$B$36),0)) -> 4
B21: API Nodes - Peak CPU | C21: =INDEX('Calculations-Hidden'!$M$47:$M$62,MATCH(1,('Calculations-Hidden'!$C$47:$C$62<=$C$14)*('Calculations-Hidden'!$E$47:$E$62<'Calculations-Hidden'!$B$37)*('Calculations-Hidden'!$M$47:$M$62<'Calculations-Hidden'!$B$36),0)) -> 148%
B22: Elastic Search Nodes - # Required | C22: 3
B23: Elastic Search Nodes - Peak CPU | C23: ='Calculations-Hidden'!$X$48 -> 14%
B24: Stat Nodes - Required | C24: 2 | D24: < 10% Peak CPU One Stat node will also serve Sync function
B25: Cassandra Nodes - # Required | C25: 3
B26: Cassandra Nodes - Peak CPU | C26: ='Calculations-Hidden'!$X$55 -> 31%
B27: Derived Parameters | C27: Value | D27: Comments
B28: Max # Agents on a Call | C28: =$C$5*$C$6 -> 1200
B29: Voice Busy Factor | C29: =$C$28/$C$4 -> 80% | D29: Note: adjust # Agents & Call Rate if Busy Factor > 100%
B30: # Simultaneous Chat Sessions | C30: =C7*C8 -> 0
B31: # Chat message rate | C31: =C7*C9 -> 0%

Sheet Sample Deployments (hidden)

Sheet Calculations-Hidden (hidden)
A1: Default settings | B1: Values | C1: Comments | O1: Default settings | P1: Values | Q1: Comments
A2: RegMax | B2: 30 | C2: Logins Per Second. It depends on DOS filter settings and available bandwidth | O2: ES Kidle | P2: =33/2000 -> 0.0165 | Q2: K ->coefficient for ES idle (CPU= kx, where x= number of agents)
A3: API Kpro | B3: 2.5 | C3: K ->coefficient for call processing (CPU= kx + b, where x= CallRate), status change is included | O3: ES Kpro | P3: 0.48
A4: API Bpro | B4: 4.54 | C4: b ->coefficient for call processing (CPU= kx + b, where x= CallRate) | O4: ES Kcontact | P4: 0.08
A5: API Kreg | B5: 10.2 | C5: K ->coefficient for relogin (CPU= kx + b, where x= Login Rate) | O5: ES Ks_obj_query | P5: 0.1
A6: API Breg | B6: 7.5 | C6: b ->coefficient for relogin (CPU= kx + b, where x= Login Rate) | O6: ES emailRateInb | P6: 1.35
A7: API Kcontact | B7: 0.73 | C7: Request contact info via UCS, There is no measurement so far, just tree time less than call processing | O7: ES emailRateOut | P7: 0
A8: API Bcontact | B8: 0 | O8: ES emailRateWBin | P8: 0
A9: API Kobj_query | B9: 0.3 | C9: Need to verify this. | O9: ES emailIdle | P9: 112 | Q9: Is it scalable with nodes?
A10: API Bobj_query | B10: 0 | O10: ES ChatRate | P10: 1.77
A11: API Kstatus_change | B11: 1 | C11: K ->coefficient for relogin (CPU= kx + b, where x= Status Change Rate) | O11: ES ChatMsgRate | P11: 0.17 | Q11: let's ignore this
A12: API Bstatus_change | B12: 0 | C12: b ->coefficient for relogin (CPU= kx + b, where x= Status Change Rate)
A13: API Chat K_Rate | B13: 4.95
A14: API Chat K_MsgRate | B14: 1.29
A15: API Chat K_ActiveSession | B15: 0 | O15: Default settings | P15: Values | Q15: Comments
A16: API Email K_RateInb | B16: 5.46 | O16: Cassandra Voice K_idle | P16: 6 | Q16: Is it scalable with nodes? does it depend on agent's number?
A17: API Email K_RateOut | B17: =7.12-5.46 -> 1.66 | O17: Cassandra Voice K_pro | P17: 0.38
A18: API Email K_RateWorkBin | B18: =8.69-7.12 -> 1.57 | O18: Cassandra Voice K_status | P18: 0.15
A19: API Email K_AttSize | B19: 0.2 | C19: CPU= Krate*Rate(1* Katt*AttInMByte) | O19: Cassandra Voice K_reg | P19: 1.2
A20: API Email K_BodySize | B20: 0.2 | O20: Cassandra Chat K_rate | P20: 1.1
A21: RegMin | B21: 3 | C21: Logins Per Second. It depends on DOS filter settings and available bandwidth | O21: Cassandra Chat K_msgRate | P21: 0.5
O22: Cassandra Email K_inb | P22: 1.9
O23: Cassandra Email K_out | P23: =2.37-1.9 -> 0.47 | Q23: K_inb_reply - Kinb
A24: CPU Overload Trashold | B24: 0.8 | O24: Cassandra Email K_wbin | P24: =3.48-2.37 -> 1.11 | Q24: K_inb_wbin_reply - Kinb_reply
A25: Lberr | B25: 0.1 | O25: Cassandra Email K_idle | P25: 17 | Q25: Is it scalable with nodes?
A26: Default CPU score | B26: 42.14 | C26: https://www.spec.org/cgi-bin/osgresults?conf=rint2006, (see SPECint2006 Rate for Intel Xeon E5-2697= 1180/28
A27: MultipleObjQuery Refresh Tout | B27: 60
A28: StatusChangesPerCall | B28: 1
A29: Call Transfer&Conference ratio | B29: 0.2
A30: UCSrequestsPerCall | B30: 4
A35: Derived params
A36: MaxCPU | B36: =' Sizing Tool'!C15*100*B24/100 -> 320.0% | C36: Maximum CPU per VM
A37: MaxCPUpro | B37: =200*B24/100 -> 160.0% | C37: Maximum CPU for TServer handling thread
A38: CPUScoreCoeff | B38: =$B$26/' Sizing Tool'!$C$16 -> 1.0
A39: CPUScoreCoeffAdjusted | B39: =IF(B38>1,B38,IF(B38<0.75,0.75,1-(1-B38)*0.5)) -> 1.0
A40: Call processing rate (adjusted) | B40: =' Sizing Tool'!C5*(3*B29+1-B29) -> 2.8 | C40: Let's assume transfer&conference has 3 times more impact on WebAPI CPU utilization
A41: MultipleObjQuery Rate | B41: =' Sizing Tool'!C4/B27 -> 25.0 | C41: Need to verify this
A42: Status Change rate | B42: =B40*B28 -> 2.8
A43: UCS Request Rate | B43: =B40*B30 -> 11.2 | C43: Let's assume that WWE issue 4 requests to UCS for each call
A46: #WebAPI Nodes | B46: Re-Login Rate | C46: Re-Login time | D46: CPUpro | E46: CPUrelog | F46: CPUstatus | G46: CPUcontact | H46: CPUobj_query | I46: EmailInb | J46: EmailOut | K46: EmailBin | L46: Chat | M46: CPUtotal | Q46: Elastic Search Nodes | R46: CPUidle | S46: CPUpro | T46: CPUcont | U46: CPUs_obj_query | V46: CPUemail | W46: CPUchat | X46: CPUtotal
A47: 2 | B47: =ROUNDUP(IF(' Sizing Tool'!$C$4/(A47*(A47-1)*' Sizing Tool'!$C$14) > $B$2, $B$2, IF(' Sizing Tool'!$C$4/(A47*(A47-1)*' Sizing Tool'!$C$14) < $B$21, $B$21, ' Sizing Tool'!$C$4/(A47*(A47-1)*' Sizing Tool'!$C$14))), 1) -> 30 | C47: =ROUNDDOWN((' Sizing Tool'!$C$4/(B47*A47*(A47-1))),0) -> 25 | D47: =(($B$3*($B$40/(A47-1)) + $B$4)*(1+$B$25))*$B$39/100 -> 12.7% | E47: =($B$5*(' Sizing Tool'!$C$4/(A47*(A47-1)*IF(C47>5,C47,5)))+$B$6)*$B$39/100 -> 314.5% | F47: =(($B$11*$B$42+$B$12)*(1+$B$25)*$B$39)/(A47-1)/100 -> 3.1% | G47: =(($B$7*$B$43+$B$8)*(1+$B$25)*$B$39)/(A47-1)/100 -> 9.0% | H47: =(($B$9*$B$43+$B$10)*(1+$B$25)*$B$39)/(A47-1)/100 -> 3.7% | I47: =($B$16*' Sizing Tool'!$C$10 * (1+$B$19 * ' Sizing Tool'!$C$13))/(A47-1)/100 -> 0.0% | J47: =($B$17*' Sizing Tool'!$C$11)/(A47-1)/100 -> 0.0% | K47: =($B$18*' Sizing Tool'!$C$12)/(A47-1)/100 -> 0.0% | L47: =('Calculations-Hidden'!$B$13*' Sizing Tool'!$C$7+'Calculations-Hidden'!$B$14*' Sizing Tool'!$C$9*' Sizing Tool'!$C$7)/(A47-1)/100 -> 0.0% | M47: =SUM(D47:L47) -> 343.1% | Q47: 2 | R47: =$P$2*' Sizing Tool'!$C$4/(Q47-1)/100 + IF((' Sizing Tool'!$C$10+' Sizing Tool'!$C$11+' Sizing Tool'!$C$7) > 0,'Calculations-Hidden'!$P$9)/(Q47-1)/100 -> 24.8% | S47: =$P$3*$B$40/(Q47-1)/100 -> 1.3% | T47: =$P$4*$B$43/(Q47-1)/100 -> 0.9% | U47: =$P$5*$B$40/(Q47-1)/100 -> 0.3% | V47: =$P$6*' Sizing Tool'!$C$10/(Q47-1)/100 -> 0.0% | W47: =$P$10*' Sizing Tool'!$C$7/(Q47-1)/100 -> 0.0% | X47: =SUM(R47:W47) -> 27.3%
A48: 3 | B48: =ROUNDUP(IF(' Sizing Tool'!$C$4/(A48*(A48-1)*' Sizing Tool'!$C$14) > $B$2, $B$2, IF(' Sizing Tool'!$C$4/(A48*(A48-1)*' Sizing Tool'!$C$14) < $B$21, $B$21, ' Sizing Tool'!$C$4/(A48*(A48-1)*' Sizing Tool'!$C$14))), 1) -> 25 | C48: =ROUNDDOWN((' Sizing Tool'!$C$4/(B48*A48*(A48-1))),0) -> 10 | D48: 8.9% | E48: =($B$5*(' Sizing Tool'!$C$4/(A48*(A48-1)*IF(C48>5,C48,5)))+$B$6)*$B$39/100 -> 263.4% | F48: 1.5% | G48: 4.5% | H48: 1.9% | I48: =($B$16*' Sizing Tool'!$C$10 * (1+$B$19 * ' Sizing Tool'!$C$13))/(A48-1)/100 -> 0.0% | J48: =($B$17*' Sizing Tool'!$C$11)/(A48-1)/100 -> 0.0% | K48: =($B$18*' Sizing Tool'!$C$12)/(A48-1)/100 -> 0.0% | L48: =('Calculations-Hidden'!$B$13*' Sizing Tool'!$C$7+'Calculations-Hidden'!$B$14*' Sizing Tool'!$C$9*' Sizing Tool'!$C$7)/(A48-1)/100 -> 0.0% | M48: =SUM(D48:L48) -> 280.2% | Q48: 3 | R48: =$P$2*' Sizing Tool'!$C$4/(Q48-1)/100 + IF((' Sizing Tool'!$C$10+' Sizing Tool'!$C$11+' Sizing Tool'!$C$7) > 0,'Calculations-Hidden'!$P$9)/(Q48-1)/100 -> 12.4% | S48: =$P$3*$B$40/(Q48-1)/100 -> 0.7% | T48: =$P$4*$B$43/(Q48-1)/100 -> 0.4% | U48: =$P$5*$B$40/(Q48-1)/100 -> 0.1% | V48: =$P$6*' Sizing Tool'!$C$10/(Q48-1)/100 -> 0.0% | W48: =$P$10*' Sizing Tool'!$C$7/(Q48-1)/100 -> 0.0% | X48: =SUM(R48:W48) -> 13.6%
A49: 4 | B49: =ROUNDUP(IF(' Sizing Tool'!$C$4/(A49*(A49-1)*' Sizing Tool'!$C$14) > $B$2, $B$2, IF(' Sizing Tool'!$C$4/(A49*(A49-1)*' Sizing Tool'!$C$14) < $B$21, $B$21, ' Sizing Tool'!$C$4/(A49*(A49-1)*' Sizing Tool'!$C$14))), 1) -> 12.5 | C49: =ROUNDDOWN((' Sizing Tool'!$C$4/(B49*A49*(A49-1))),0) -> 10 | D49: 7.6% | E49: =($B$5*(' Sizing Tool'!$C$4/(A49*(A49-1)*IF(C49>5,C49,5)))+$B$6)*$B$39/100 -> 135.5% | F49: 1.0% | G49: 3.0% | H49: 1.2% | I49: =($B$16*' Sizing Tool'!$C$10 * (1+$B$19 * ' Sizing Tool'!$C$13))/(A49-1)/100 -> 0.0% | J49: =($B$17*' Sizing Tool'!$C$11)/(A49-1)/100 -> 0.0% | K49: =($B$18*' Sizing Tool'!$C$12)/(A49-1)/100 -> 0.0% | L49: =('Calculations-Hidden'!$B$13*' Sizing Tool'!$C$7+'Calculations-Hidden'!$B$14*' Sizing Tool'!$C$9*' Sizing Tool'!$C$7)/(A49-1)/100 -> 0.0% | M49: 148.3% | Q49: 4 | R49: =$P$2*' Sizing Tool'!$C$4/(Q49-1)/100 + IF((' Sizing Tool'!$C$10+' Sizing Tool'!$C$11+' Sizing Tool'!$C$7) > 0,'Calculations-Hidden'!$P$9)/(Q49-1)/100 -> 8.3% | S49: =$P$3*$B$40/(Q49-1)/100 -> 0.4% | T49: =$P$4*$B$43/(Q49-1)/100 -> 0.3% | U49: 0.1% | V49: =$P$6*' Sizing Tool'!$C$10/(Q49-1)/100 -> 0.0% | W49: =$P$10*' Sizing Tool'!$C$7/(Q49-1)/100 -> 0.0% | X49: 9.1%
A50: 5 | B50: =ROUNDUP(IF(' Sizing Tool'!$C$4/(A50*(A50-1)*' Sizing Tool'!$C$14) > $B$2, $B$2, IF(' Sizing Tool'!$C$4/(A50*(A50-1)*' Sizing Tool'!$C$14) < $B$21, $B$21, ' Sizing Tool'!$C$4/(A50*(A50-1)*' Sizing Tool'!$C$14))), 1) -> 7.5 | C50: =ROUNDDOWN((' Sizing Tool'!$C$4/(B50*A50*(A50-1))),0) -> 10 | D50: 6.9% | E50: =($B$5*(' Sizing Tool'!$C$4/(A50*(A50-1)*IF(C50>5,C50,5)))+$B$6)*$B$39/100 -> 84.3% | F50: 0.8% | G50: 2.3% | H50: 0.9% | I50: =($B$16*' Sizing Tool'!$C$10 * (1+$B$19 * ' Sizing Tool'!$C$13))/(A50-1)/100 -> 0.0% | J50: =($B$17*' Sizing Tool'!$C$11)/(A50-1)/100 -> 0.0% | K50: =($B$18*' Sizing Tool'!$C$12)/(A50-1)/100 -> 0.0% | L50: =('Calculations-Hidden'!$B$13*' Sizing Tool'!$C$7+'Calculations-Hidden'!$B$14*' Sizing Tool'!$C$9*' Sizing Tool'!$C$7)/(A50-1)/100 -> 0.0% | M50: 95.2% | Q50: 5 | R50: =$P$2*' Sizing Tool'!$C$4/(Q50-1)/100 + IF((' Sizing Tool'!$C$10+' Sizing Tool'!$C$11+' Sizing Tool'!$C$7) > 0,'Calculations-Hidden'!$P$9)/(Q50-1)/100 -> 6.2% | S50: =$P$3*$B$40/(Q50-1)/100 -> 0.3% | T50: =$P$4*$B$43/(Q50-1)/100 -> 0.2% | U50: 0.1% | V50: =$P$6*' Sizing Tool'!$C$10/(Q50-1)/100 -> 0.0% | W50: =$P$10*' Sizing Tool'!$C$7/(Q50-1)/100 -> 0.0% | X50: 6.8%
A51: 6 | B51: =ROUNDUP(IF(' Sizing Tool'!$C$4/(A51*(A51-1)*' Sizing Tool'!$C$14) > $B$2, $B$2, IF(' Sizing Tool'!$C$4/(A51*(A51-1)*' Sizing Tool'!$C$14) < $B$21, $B$21, ' Sizing Tool'!$C$4/(A51*(A51-1)*' Sizing Tool'!$C$14))), 1) -> 5 | C51: =ROUNDDOWN((' Sizing Tool'!$C$4/(B51*A51*(A51-1))),0) -> 10 | D51: 6.6% | E51: =($B$5*(' Sizing Tool'!$C$4/(A51*(A51-1)*IF(C51>5,C51,5)))+$B$6)*$B$39/100 -> 58.7% | F51: 0.6% | G51: 1.8% | H51: 0.7% | I51: =($B$16*' Sizing Tool'!$C$10 * (1+$B$19 * ' Sizing Tool'!$C$13))/(A51-1)/100 -> 0.0% | J51: =($B$17*' Sizing Tool'!$C$11)/(A51-1)/100 -> 0.0% | K51: =($B$18*' Sizing Tool'!$C$12)/(A51-1)/100 -> 0.0% | L51: =('Calculations-Hidden'!$B$13*' Sizing Tool'!$C$7+'Calculations-Hidden'!$B$14*' Sizing Tool'!$C$9*' Sizing Tool'!$C$7)/(A51-1)/100 -> 0.0% | M51: 68.4%
A52: 7 | B52: =ROUNDUP(IF(' Sizing Tool'!$C$4/(A52*(A52-1)*' Sizing Tool'!$C$14) > $B$2, $B$2, IF(' Sizing Tool'!$C$4/(A52*(A52-1)*' Sizing Tool'!$C$14) < $B$21, $B$21, ' Sizing Tool'!$C$4/(A52*(A52-1)*' Sizing Tool'!$C$14))), 1) -> 3.6 | C52: =ROUNDDOWN((' Sizing Tool'!$C$4/(B52*A52*(A52-1))),0) -> 9 | D52: 6.3% | E52: =($B$5*(' Sizing Tool'!$C$4/(A52*(A52-1)*IF(C52>5,C52,5)))+$B$6)*$B$39/100 -> 48.1% | F52: 0.5% | G52: 1.5% | H52: 0.6% | I52: =($B$16*' Sizing Tool'!$C$10 * (1+$B$19 * ' Sizing Tool'!$C$13))/(A52-1)/100 -> 0.0% | J52: =($B$17*' Sizing Tool'!$C$11)/(A52-1)/100 -> 0.0% | K52: =($B$18*' Sizing Tool'!$C$12)/(A52-1)/100 -> 0.0% | L52: =('Calculations-Hidden'!$B$13*' Sizing Tool'!$C$7+'Calculations-Hidden'!$B$14*' Sizing Tool'!$C$9*' Sizing Tool'!$C$7)/(A52-1)/100 -> 0.0% | M52: 57.1%
A53: 8 | B53: =ROUNDUP(IF(' Sizing Tool'!$C$4/(A53*(A53-1)*' Sizing Tool'!$C$14) > $B$2, $B$2, IF(' Sizing Tool'!$C$4/(A53*(A53-1)*' Sizing Tool'!$C$14) < $B$21, $B$21, ' Sizing Tool'!$C$4/(A53*(A53-1)*' Sizing Tool'!$C$14))), 1) -> 3 | C53: =ROUNDDOWN((' Sizing Tool'!$C$4/(B53*A53*(A53-1))),0) -> 8 | D53: 6.1% | E53: =($B$5*(' Sizing Tool'!$C$4/(A53*(A53-1)*IF(C53>5,C53,5)))+$B$6)*$B$39/100 -> 41.8% | F53: 0.4% | G53: 1.3% | H53: 0.5% | I53: =($B$16*' Sizing Tool'!$C$10 * (1+$B$19 * ' Sizing Tool'!$C$13))/(A53-1)/100 -> 0.0% | J53: =($B$17*' Sizing Tool'!$C$11)/(A53-1)/100 -> 0.0% | K53: =($B$18*' Sizing Tool'!$C$12)/(A53-1)/100 -> 0.0% | L53: =('Calculations-Hidden'!$B$13*' Sizing Tool'!$C$7+'Calculations-Hidden'!$B$14*' Sizing Tool'!$C$9*' Sizing Tool'!$C$7)/(A53-1)/100 -> 0.0% | M53: 50.2%
A54: 9 | B54: =ROUNDUP(IF(' Sizing Tool'!$C$4/(A54*(A54-1)*' Sizing Tool'!$C$14) > $B$2, $B$2, IF(' Sizing Tool'!$C$4/(A54*(A54-1)*' Sizing Tool'!$C$14) < $B$21, $B$21, ' Sizing Tool'!$C$4/(A54*(A54-1)*' Sizing Tool'!$C$14))), 1) -> 3 | C54: =ROUNDDOWN((' Sizing Tool'!$C$4/(B54*A54*(A54-1))),0) -> 6 | D54: 6.0% | E54: =($B$5*(' Sizing Tool'!$C$4/(A54*(A54-1)*IF(C54>5,C54,5)))+$B$6)*$B$39/100 -> 43.1% | F54: 0.4% | G54: 1.1% | H54: 0.5% | I54: =($B$16*' Sizing Tool'!$C$10 * (1+$B$19 * ' Sizing Tool'!$C$13))/(A54-1)/100 -> 0.0% | J54: =($B$17*' Sizing Tool'!$C$11)/(A54-1)/100 -> 0.0% | K54: =($B$18*' Sizing Tool'!$C$12)/(A54-1)/100 -> 0.0% | L54: =('Calculations-Hidden'!$B$13*' Sizing Tool'!$C$7+'Calculations-Hidden'!$B$14*' Sizing Tool'!$C$9*' Sizing Tool'!$C$7)/(A54-1)/100 -> 0.0% | M54: 51.0% | Q54: #Cassandra | R54: CPUidle | S54: CPUpro | T54: CPUstatus | U54: CPUreg | V54: CPUemail | W54: CPUchat | X54: CPUTotal
A55: 10 | B55: =ROUNDUP(IF(' Sizing Tool'!$C$4/(A55*(A55-1)*' Sizing Tool'!$C$14) > $B$2, $B$2, IF(' Sizing Tool'!$C$4/(A55*(A55-1)*' Sizing Tool'!$C$14) < $B$21, $B$21, ' Sizing Tool'!$C$4/(A55*(A55-1)*' Sizing Tool'!$C$14))), 1) -> 3 | C55: =ROUNDDOWN((' Sizing Tool'!$C$4/(B55*A55*(A55-1))),0) -> 5 | D55: 5.9% | E55: =($B$5*(' Sizing Tool'!$C$4/(A55*(A55-1)*IF(C55>5,C55,5)))+$B$6)*$B$39/100 -> 41.6% | F55: 0.3% | G55: 1.0% | H55: 0.4% | I55: =($B$16*' Sizing Tool'!$C$10 * (1+$B$19 * ' Sizing Tool'!$C$13))/(A55-1)/100 -> 0.0% | J55: =($B$17*' Sizing Tool'!$C$11)/(A55-1)/100 -> 0.0% | K55: =($B$18*' Sizing Tool'!$C$12)/(A55-1)/100 -> 0.0% | L55: =('Calculations-Hidden'!$B$13*' Sizing Tool'!$C$7+'Calculations-Hidden'!$B$14*' Sizing Tool'!$C$9*' Sizing Tool'!$C$7)/(A55-1)/100 -> 0.0% | M55: 49.3% | Q55: 3 | R55: =IF((' Sizing Tool'!$C$10+' Sizing Tool'!$C$11+' Sizing Tool'!$C$7) > 0,$P$25,$P$16)/100 -> 6.0% | S55: =$P$17*$B$40/100 -> 1.1% | T55: =$P$18*$B$42/100 -> 0.4% | U55: =$P$19 * 20/100 -> 24.0% | V55: =($P$22*' Sizing Tool'!$C$10+$P$23*' Sizing Tool'!$C$11+$P$24*' Sizing Tool'!$C$12)/100 -> 0.0% | W55: =($P$20*' Sizing Tool'!$C$7+$P$21*(' Sizing Tool'!$C$7*' Sizing Tool'!$C$9))/100 -> 0.0% | X55: =SUM(R55:W55) -> 31.5%
A56: 11 | B56: =ROUNDUP(IF(' Sizing Tool'!$C$4/(A56*(A56-1)*' Sizing Tool'!$C$14) > $B$2, $B$2, IF(' Sizing Tool'!$C$4/(A56*(A56-1)*' Sizing Tool'!$C$14) < $B$21, $B$21, ' Sizing Tool'!$C$4/(A56*(A56-1)*' Sizing Tool'!$C$14))), 1) -> 3 | C56: =ROUNDDOWN((' Sizing Tool'!$C$4/(B56*A56*(A56-1))),0) -> 4 | D56: 5.8% | E56: =($B$5*(' Sizing Tool'!$C$4/(A56*(A56-1)*IF(C56>5,C56,5)))+$B$6)*$B$39/100 -> 35.4% | F56: 0.3% | G56: 0.9% | H56: 0.4% | I56: =($B$16*' Sizing Tool'!$C$10 * (1+$B$19 * ' Sizing Tool'!$C$13))/(A56-1)/100 -> 0.0% | J56: =($B$17*' Sizing Tool'!$C$11)/(A56-1)/100 -> 0.0% | K56: =($B$18*' Sizing Tool'!$C$12)/(A56-1)/100 -> 0.0% | L56: =('Calculations-Hidden'!$B$13*' Sizing Tool'!$C$7+'Calculations-Hidden'!$B$14*' Sizing Tool'!$C$9*' Sizing Tool'!$C$7)/(A56-1)/100 -> 0.0% | M56: 42.8%
A57: 12 | B57: =ROUNDUP(IF(' Sizing Tool'!$C$4/(A57*(A57-1)*' Sizing Tool'!$C$14) > $B$2, $B$2, IF(' Sizing Tool'!$C$4/(A57*(A57-1)*' Sizing Tool'!$C$14) < $B$21, $B$21, ' Sizing Tool'!$C$4/(A57*(A57-1)*' Sizing Tool'!$C$14))), 1) -> 3 | C57: =ROUNDDOWN((' Sizing Tool'!$C$4/(B57*A57*(A57-1))),0) -> 3 | D57: 5.7% | E57: =($B$5*(' Sizing Tool'!$C$4/(A57*(A57-1)*IF(C57>5,C57,5)))+$B$6)*$B$39/100 -> 30.8% | F57: 0.3% | G57: 0.8% | H57: 0.3% | I57: =($B$16*' Sizing Tool'!$C$10 * (1+$B$19 * ' Sizing Tool'!$C$13))/(A57-1)/100 -> 0.0% | J57: =($B$17*' Sizing Tool'!$C$11)/(A57-1)/100 -> 0.0% | K57: =($B$18*' Sizing Tool'!$C$12)/(A57-1)/100 -> 0.0% | L57: =('Calculations-Hidden'!$B$13*' Sizing Tool'!$C$7+'Calculations-Hidden'!$B$14*' Sizing Tool'!$C$9*' Sizing Tool'!$C$7)/(A57-1)/100 -> 0.0% | M57: 37.9%
A58: 13 | B58: =ROUNDUP(IF(' Sizing Tool'!$C$4/(A58*(A58-1)*' Sizing Tool'!$C$14) > $B$2, $B$2, IF(' Sizing Tool'!$C$4/(A58*(A58-1)*' Sizing Tool'!$C$14) < $B$21, $B$21, ' Sizing Tool'!$C$4/(A58*(A58-1)*' Sizing Tool'!$C$14))), 1) -> 3 | C58: =ROUNDDOWN((' Sizing Tool'!$C$4/(B58*A58*(A58-1))),0) -> 3 | D58: 5.7% | E58: =($B$5*(' Sizing Tool'!$C$4/(A58*(A58-1)*IF(C58>5,C58,5)))+$B$6)*$B$39/100 -> 27.2% | F58: 0.3% | G58: 0.8% | H58: 0.3% | I58: =($B$16*' Sizing Tool'!$C$10 * (1+$B$19 * ' Sizing Tool'!$C$13))/(A58-1)/100 -> 0.0% | J58: =($B$17*' Sizing Tool'!$C$11)/(A58-1)/100 -> 0.0% | K58: =($B$18*' Sizing Tool'!$C$12)/(A58-1)/100 -> 0.0% | L58: =('Calculations-Hidden'!$B$13*' Sizing Tool'!$C$7+'Calculations-Hidden'!$B$14*' Sizing Tool'!$C$9*' Sizing Tool'!$C$7)/(A58-1)/100 -> 0.0% | M58: 34.2%
A59: 14 | B59: =ROUNDUP(IF(' Sizing Tool'!$C$4/(A59*(A59-1)*' Sizing Tool'!$C$14) > $B$2, $B$2, IF(' Sizing Tool'!$C$4/(A59*(A59-1)*' Sizing Tool'!$C$14) < $B$21, $B$21, ' Sizing Tool'!$C$4/(A59*(A59-1)*' Sizing Tool'!$C$14))), 1) -> 3 | C59: =ROUNDDOWN((' Sizing Tool'!$C$4/(B59*A59*(A59-1))),0) -> 2 | D59: 5.6% | E59: =($B$5*(' Sizing Tool'!$C$4/(A59*(A59-1)*IF(C59>5,C59,5)))+$B$6)*$B$39/100 -> 24.4% | F59: 0.2% | G59: 0.7% | H59: 0.3% | I59: =($B$16*' Sizing Tool'!$C$10 * (1+$B$19 * ' Sizing Tool'!$C$13))/(A59-1)/100 -> 0.0% | J59: =($B$17*' Sizing Tool'!$C$11)/(A59-1)/100 -> 0.0% | K59: =($B$18*' Sizing Tool'!$C$12)/(A59-1)/100 -> 0.0% | L59: =('Calculations-Hidden'!$B$13*' Sizing Tool'!$C$7+'Calculations-Hidden'!$B$14*' Sizing Tool'!$C$9*' Sizing Tool'!$C$7)/(A59-1)/100 -> 0.0% | M59: 31.2%
A60: 15 | B60: =ROUNDUP(IF(' Sizing Tool'!$C$4/(A60*(A60-1)*' Sizing Tool'!$C$14) > $B$2, $B$2, IF(' Sizing Tool'!$C$4/(A60*(A60-1)*' Sizing Tool'!$C$14) < $B$21, $B$21, ' Sizing Tool'!$C$4/(A60*(A60-1)*' Sizing Tool'!$C$14))), 1) -> 3 | C60: =ROUNDDOWN((' Sizing Tool'!$C$4/(B60*A60*(A60-1))),0) -> 2 | D60: 5.6% | E60: =($B$5*(' Sizing Tool'!$C$4/(A60*(A60-1)*IF(C60>5,C60,5)))+$B$6)*$B$39/100 -> 22.1% | F60: 0.2% | G60: 0.6% | H60: 0.3% | I60: =($B$16*' Sizing Tool'!$C$10 * (1+$B$19 * ' Sizing Tool'!$C$13))/(A60-1)/100 -> 0.0% | J60: =($B$17*' Sizing Tool'!$C$11)/(A60-1)/100 -> 0.0% | K60: =($B$18*' Sizing Tool'!$C$12)/(A60-1)/100 -> 0.0% | L60: =('Calculations-Hidden'!$B$13*' Sizing Tool'!$C$7+'Calculations-Hidden'!$B$14*' Sizing Tool'!$C$9*' Sizing Tool'!$C$7)/(A60-1)/100 -> 0.0% | M60: 28.8%
A61: 16 | B61: =ROUNDUP(IF(' Sizing Tool'!$C$4/(A61*(A61-1)*' Sizing Tool'!$C$14) > $B$2, $B$2, IF(' Sizing Tool'!$C$4/(A61*(A61-1)*' Sizing Tool'!$C$14) < $B$21, $B$21, ' Sizing Tool'!$C$4/(A61*(A61-1)*' Sizing Tool'!$C$14))), 1) -> 3 | C61: =ROUNDDOWN((' Sizing Tool'!$C$4/(B61*A61*(A61-1))),0) -> 2 | D61: 5.5% | E61: =($B$5*(' Sizing Tool'!$C$4/(A61*(A61-1)*IF(C61>5,C61,5)))+$B$6)*$B$39/100 -> 20.3% | F61: 0.2% | G61: 0.6% | H61: 0.2% | I61: =($B$16*' Sizing Tool'!$C$10 * (1+$B$19 * ' Sizing Tool'!$C$13))/(A61-1)/100 -> 0.0% | J61: =($B$17*' Sizing Tool'!$C$11)/(A61-1)/100 -> 0.0% | K61: =($B$18*' Sizing Tool'!$C$12)/(A61-1)/100 -> 0.0% | L61: =('Calculations-Hidden'!$B$13*' Sizing Tool'!$C$7+'Calculations-Hidden'!$B$14*' Sizing Tool'!$C$9*' Sizing Tool'!$C$7)/(A61-1)/100 -> 0.0% | M61: 26.9%
A62: 99 | C62: 0 | D62: 0.0% | E62: 0.0% | F62: 0.0% | G62: 0.0% | H62: 0.0% | I62: 0.0% | J62: 0.0% | K62: 0.0% | L62: 0.0% | M62: =D62+E62+F62+G62+H62 -> 0.0%
